fUST/lending_fUST_20250405
["ID","MTS","AMOUNT","RATE_DAILY","PERIOD"]
[357172218,1743858645933,-500.0,0.00020273,2]
[357172220,1743858645942,-500.0,0.00020273,2]
[357172221,1743858645951,-500.0,0.00020273,2]
[357172222,1743858645961,-500.0,0.00020273,2]
[357172223,1743858645971,-500.0,0.00020273,2]
[357172224,1743858645980,-500.0,0.00020273,2]
[357172225,1743858645990,-151.0,0.00020273,2]
[357172226,1743858646000,-1749.15,0.00020273,2]
[357172227,1743858646009,-500.0,0.00020273,2]
[357172228,1743858646019,-602.57985915,0.00020273,2]
[357172229,1743858646028,-508.79,0.00020273,2]
[357172230,1743858646038,-500.0,0.00020273,2]
[357172231,1743858646047,-500.0,0.00020273,2]
[357172232,1743858646057,-500.0,0.00020273,2]
[357172233,1743858646066,-1750.68,0.00020273,2]
[357172234,1743858646075,-854.97,0.00020273,2]
[357172235,1743858646086,-500.0,0.00020273,2]
[357172236,1743858646096,-3194.54,0.00020273,2]
[357172237,1743858646106,-516.16,0.00020273,2]
[357172238,1743858646116,-500.0,0.00020273,2]
[357172239,1743858646128,-500.0,0.00020273,2]
[357172240,1743858646139,-500.0,0.00020273,2]
[357172241,1743858646148,-500.0,0.00020273,2]
[357172243,1743858646158,-500.0,0.00020273,2]
[357172245,1743858646170,-500.0,0.00020273,2]
[357172246,1743858646180,-500.0,0.00020273,2]
[357172247,1743858646189,-549.57,0.00020273,2]
[357172248,1743858646199,-1304.9,0.00020273,2]
[357172249,1743858646209,-500.0,0.00020273,2]
[357172250,1743858646219,-808.65,0.00020273,2]
[357172251,1743858646229,-500.0,0.00020273,2]
[357172252,1743858646239,-500.0,0.00020273,2]
[357172253,1743858646250,-500.0,0.00020273,2]
[357172254,1743858646261,-500.0,0.00020273,2]
[357172255,1743858646271,-500.0,0.00020273,2]
[357172256,1743858646281,-344.37603783,0.00020273,2]
[357172257,1743858646292,-500.0,0.00020273,2]
[357172258,1743858646302,-1716.09,0.00020273,2]
[357172259,1743858646312,-500.0,0.00020273,2]
[357172260,1743858646322,-2331.95,0.00020273,2]
[357172261,1743858646332,-500.0,0.00020273,2]
[357172262,1743858646342,-500.0,0.00020273,2]
[357172263,1743858646351,-500.0,0.00020273,2]
[357172264,1743858646362,-500.0,0.00020273,2]
[357172265,1743858646372,-500.0,0.00020273,2]
[357172266,1743858646381,-461.96,0.00020273,2]
[357172267,1743858646391,-500.0,0.00020273,2]
[357172268,1743858646401,-500.0,0.00020273,2]
[357172269,1743858646410,-500.0,0.00020273,2]
[357172270,1743858646420,-500.0,0.00020273,2]
[357172271,1743858646430,-500.0,0.00020273,2]
[357172272,1743858646439,-500.0,0.00020273,2]
[357172273,1743858646449,-500.0,0.00020273,2]
[357172274,1743858646458,-776.09,0.00020273,2]
[357172275,1743858646469,-500.0,0.00020273,2]
[357172276,1743858646478,-590.42,0.00020273,2]
[357172277,1743858646487,-624.89,0.00020273,2]
[357172278,1743858646497,-500.0,0.00020273,2]
[357172279,1743858646507,-500.0,0.00020273,2]
[357172280,1743858646517,-500.0,0.00020273,2]
[357172281,1743858646526,-66310.53,0.00020273,2]
[357172282,1743858646536,-500.0,0.00020273,2]
[357172283,1743858646546,-670.7,0.00020273,2]
[357172284,1743858646555,-500.0,0.00020273,2]
[357172285,1743858646565,-901.27,0.00020273,2]
[357172286,1743858646574,-500.0,0.00020273,2]
[357172287,1743858646584,-500.0,0.00020273,2]
[357172288,1743858646593,-500.0,0.00020273,2]
[357172289,1743858646602,-500.0,0.00020273,2]
[357172290,1743858646611,-500.0,0.00020273,2]
[357172291,1743858646621,-500.0,0.00020273,2]
[357172292,1743858646630,-500.0,0.00020273,2]
[357172293,1743858646640,-500.0,0.00020273,2]
[357172294,1743858646649,-500.0,0.00020273,2]
[357172295,1743858646658,-500.0,0.00020273,2]
[357172296,1743858646668,-500.0,0.00020273,2]
[357172297,1743858646677,-631.0,0.00020273,2]
[357172298,1743858646687,-500.0,0.00020273,2]
[357172299,1743858646698,-500.0,0.00020273,2]
[357172300,1743858646707,-500.0,0.00020273,2]
[357172301,1743858646716,-500.0,0.00020273,2]
[357172302,1743858646726,-500.0,0.00020273,2]
[357172303,1743858646736,-500.0,0.00020273,2]
[357172304,1743858646746,-500.0,0.00020273,2]
[357172305,1743858646755,-500.0,0.00020273,2]
[357172306,1743858646766,-500.0,0.00020273,2]
[357172307,1743858646775,-500.0,0.00020273,2]
[357172308,1743858646784,-500.0,0.00020273,2]
[357172309,1743858646793,-500.0,0.00020273,2]
[357172310,1743858646802,-1988.45,0.00020273,2]
[357172311,1743858646812,-691.0,0.00020273,2]
[357172312,1743858646821,-500.0,0.00020273,2]
[357172313,1743858646831,-500.0,0.00020273,2]
[357172314,1743858646840,-500.0,0.00020273,2]
[357172315,1743858646849,-500.0,0.00020273,2]
[357172316,1743858646859,-500.0,0.00020273,2]
[357172317,1743858646869,-500.0,0.00020273,2]
[357172318,1743858646878,-3354.94,0.00020273,2]
[357172319,1743858646888,-500.0,0.00020273,2]
[357172320,1743858646897,-500.0,0.00020273,2]
[357172321,1743858646906,-500.0,0.00020273,2]
[357172322,1743858646916,-500.0,0.00020273,2]
[357172323,1743858646925,-500.0,0.00020273,2]
[357172324,1743858646934,-500.0,0.00020273,2]
[357172325,1743858646943,-500.0,0.00020273,2]
[357172326,1743858646953,-500.0,0.00020273,2]
[357172327,1743858646963,-500.0,0.00020273,2]
[357172328,1743858646973,-500.0,0.00020273,2]
[357172329,1743858646983,-722.15,0.00020273,2]
[357172330,1743858646992,-898.1,0.00020273,2]
[357172331,1743858647001,-500.0,0.00020273,2]
[357172332,1743858647010,-500.0,0.00020273,2]
[357172333,1743858647019,-500.0,0.00020273,2]
[357172334,1743858647029,-151.0,0.000203,4]
[357172335,1743858647038,-3000.0,0.00020376,2]
[357172336,1743858647048,-151.0,0.000205,3]
[357172337,1743858647057,-151.0,0.00020535,2]
[357172338,1743858647066,-207.4,0.00020535,2]
[357172339,1743858647076,-500.0,0.00020547,2]
[357172340,1743858647085,-500.0,0.00020547,2]
[357172341,1743858647095,-500.0,0.00020547,2]
[357172342,1743858647104,-500.0,0.00020547,2]
[357172343,1743858647113,-500.0,0.00020547,2]
[357172344,1743858647124,-500.0,0.00020547,2]
[357172345,1743858647137,-500.0,0.00020547,2]
[357172346,1743858647146,-500.0,0.00020547,2]
[357172347,1743858647156,-500.0,0.00020547,2]
[357172348,1743858647166,-500.0,0.00020547,2]
[357172349,1743858647177,-500.0,0.00020547,2]
[357172350,1743858647186,-500.0,0.00020547,2]
[357172351,1743858647196,-500.0,0.00020547,2]
[357172352,1743858647206,-500.0,0.00020547,2]
[357172353,1743858647216,-500.0,0.00020547,2]
[357172354,1743858647225,-500.0,0.00020547,2]
[357172355,1743858647234,-500.0,0.00020547,2]
[357172356,1743858647244,-500.0,0.00020547,2]
[357172357,1743858647253,-500.0,0.00020547,2]
[357172358,1743858647263,-500.0,0.00020547,2]
[357172359,1743858647344,-172.708232,0.00020547,2]
[357172360,1743858647354,-172.708232,0.00020547,2]
[357172361,1743858647364,-646.83,0.00020547,2]
[357172362,1743858647373,-500.0,0.00020547,2]
[357172363,1743858647383,-500.0,0.00020547,2]
[357172364,1743858647392,-500.0,0.00020547,2]
[357172365,1743858647401,-500.0,0.00020547,2]
[357172366,1743858647411,-500.0,0.00020547,2]
[357172367,1743858647420,-171.185658,0.00020547,2]
[357172368,1743858647430,-171.185658,0.00020547,2]
[357172369,1743858647440,-500.0,0.00020547,2]
[357172370,1743858647449,-321.68407,0.00020547,2]
[357172371,1743858647459,-193.632273,0.00020547,2]
[357172372,1743858647468,-321.68407,0.00020547,2]
[357172373,1743858647478,-193.632273,0.00020547,2]
[357172374,1743858647488,-389.71,0.00020547,2]
[357172375,1743858647498,-206.65,0.00020547,2]
[357172376,1743858647507,-500.0,0.00020547,2]
[357172377,1743858647516,-500.0,0.00020547,2]
[357172378,1743858647525,-500.0,0.00020547,2]
[357172379,1743858647534,-500.0,0.00020547,2]
[357172380,1743858647543,-500.0,0.00020547,2]
[357172381,1743858647553,-500.0,0.00020547,2]
[357172382,1743858647562,-500.0,0.00020547,2]
[357172383,1743858647571,-500.0,0.00020547,2]
[357172384,1743858647581,-500.0,0.00020547,2]
[357172385,1743858647590,-500.0,0.00020547,2]
[357172386,1743858647600,-500.0,0.00020547,2]
[357172387,1743858647610,-500.0,0.00020547,2]
[357172388,1743858647619,-500.0,0.00020547,2]
[357172389,1743858647629,-500.0,0.00020547,2]
[357172390,1743858647639,-500.0,0.00020547,2]
[357172391,1743858647648,-500.0,0.00020547,2]
[357172392,1743858647658,-1749.15,0.00020547,2]
[357172393,1743858647667,-500.0,0.00020547,2]
[357172394,1743858647677,-508.79,0.00020547,2]
[357172395,1743858647686,-500.0,0.00020547,2]
[357172396,1743858647695,-500.0,0.00020547,2]
[357172397,1743858647704,-1750.68,0.00020547,2]
[357172398,1743858647715,-854.97,0.00020547,2]
[357172399,1743858647725,-513.48863833,0.00020547,2]
[357172400,1743858647735,-3194.54,0.00020547,2]
[357172401,1743858647744,-500.0,0.00020547,2]
[357172402,1743858647754,-447.23771322,0.00020547,2]
[357172403,1743858647763,-500.0,0.00020547,2]
[357172404,1743858647772,-500.0,0.00020547,2]
[357172405,1743858647782,-334.01224926,0.00020547,2]
[357172406,1743858647792,-500.0,0.00020547,2]
[357172407,1743858647802,-527.37,0.00020547,2]
[357172408,1743858647812,-549.57,0.00020547,2]
[357172409,1743858647821,-1304.9,0.00020547,2]
[357172410,1743858647830,-500.0,0.00020547,2]
[357172411,1743858647839,-808.65,0.00020547,2]
[357172412,1743858647849,-500.0,0.00020547,2]
[357172413,1743858647858,-522.69875209,0.00020547,2]
[357172414,1743858647868,-500.0,0.00020547,2]
[357172415,1743858647878,-500.0,0.00020547,2]
[357172416,1743858647888,-500.0,0.00020547,2]
[357172417,1743858647897,-500.0,0.00020547,2]
[357172418,1743858647907,-1716.09,0.00020547,2]
[357172419,1743858647916,-500.0,0.00020547,2]
[357172420,1743858647926,-2331.95,0.00020547,2]
[357172421,1743858647935,-507.98549844,0.00020547,2]
[357172422,1743858647944,-500.0,0.00020547,2]
[357172423,1743858647954,-500.0,0.00020547,2]
[357172424,1743858647963,-500.0,0.00020547,2]
[357172425,1743858647976,-500.0,0.00020547,2]
[357172426,1743858647985,-500.0,0.00020547,2]
[357172427,1743858647994,-500.0,0.00020547,2]
[357172428,1743858648004,-500.0,0.00020547,2]
[357172429,1743858648013,-500.0,0.00020547,2]
[357172430,1743858648023,-500.0,0.00020547,2]
[357172431,1743858648033,-776.09,0.00020547,2]
[357172432,1743858648043,-200.40784526,0.00020547,2]
[357172433,1743858648052,-590.42,0.00020547,2]
[357172434,1743858648062,-624.89,0.00020547,2]
[357172435,1743858648072,-305.1,0.00020547,2]
[357172436,1743858648082,-500.0,0.00020547,2]
[357172437,1743858648092,-500.0,0.00020547,2]
[357172438,1743858648102,-66310.53,0.00020547,2]
[357172439,1743858648112,-290.95,0.00020547,2]
[357172440,1743858648124,-670.7,0.00020547,2]
[357172441,1743858648136,-500.0,0.00020547,2]
[357172442,1743858648145,-901.27,0.00020547,2]
[357172443,1743858648155,-500.0,0.00020547,2]
[357172444,1743858648164,-500.0,0.00020547,2]
[357172445,1743858648175,-500.0,0.00020547,2]
[357172446,1743858648185,-500.0,0.00020547,2]
[357172447,1743858648195,-500.0,0.00020547,2]
[357172448,1743858648206,-500.0,0.00020547,2]
[357172449,1743858648219,-500.0,0.00020547,2]
[357172450,1743858648230,-500.0,0.00020547,2]
[357172451,1743858648241,-500.0,0.00020547,2]
[357172452,1743858648251,-631.0,0.00020547,2]
[357172453,1743858648262,-500.0,0.00020547,2]
[357172454,1743858648275,-500.0,0.00020547,2]
[357172455,1743858648286,-500.0,0.00020547,2]
[357172456,1743858648297,-500.0,0.00020547,2]
[357172457,1743858648307,-500.0,0.00020547,2]
[357172458,1743858648317,-500.0,0.00020547,2]
[357172459,1743858648327,-500.0,0.00020547,2]
[357172460,1743858648337,-500.0,0.00020547,2]
[357172461,1743858648347,-500.0,0.00020547,2]
[357172462,1743858648357,-500.0,0.00020547,2]
[357172463,1743858648367,-500.0,0.00020547,2]
[357172464,1743858648376,-500.0,0.00020547,2]
[357172465,1743858648385,-1988.45,0.00020547,2]
[357172466,1743858648396,-691.0,0.00020547,2]
[357172467,1743858648406,-500.0,0.00020547,2]
[357172468,1743858648416,-500.0,0.00020547,2]
[357172469,1743858648426,-500.0,0.00020547,2]
[357172470,1743858648436,-500.0,0.00020547,2]
[357172471,1743858648446,-500.0,0.00020547,2]
[357172472,1743858648456,-500.0,0.00020547,2]
[357172473,1743858648470,-3354.94,0.00020547,2]
[357172474,1743858648480,-500.0,0.00020547,2]
[357172475,1743858648491,-500.0,0.00020547,2]
[357172476,1743858648501,-500.0,0.00020547,2]
[357172477,1743858648512,-500.0,0.00020547,2]
[357172478,1743858648522,-500.0,0.00020547,2]
[357172479,1743858648532,-500.0,0.00020547,2]
[357172480,1743858648541,-500.0,0.00020547,2]
[357172481,1743858648551,-500.0,0.00020547,2]
[357172482,1743858648561,-500.0,0.00020547,2]
[357172483,1743858648570,-500.0,0.00020547,2]
[357172484,1743858648580,-722.15,0.00020547,2]
[357172485,1743858648590,-898.1,0.00020547,2]
[357172486,1743858648600,-500.0,0.00020547,2]
[357172487,1743858648609,-500.0,0.00020547,2]
[357172488,1743858648619,-170.04,0.00020547,2]
[357172489,1743858648629,-151.0,0.000206,4]
[357172490,1743858648639,-160.0,0.00020631,2]
[357172491,1743858648649,-151.0,0.000207,4]
[357172492,1743858648659,-160.0,0.00020732,2]
[357172493,1743858648668,-12522.71377557,0.00020732,2]
[357172494,1743858648678,-781.25,0.00020732,2]
[357172495,1743858648687,-160.0,0.00020732,2]
[357172496,1743858648697,-151.0,0.0002082,2]
[357172497,1743858648706,-172.708232,0.0002082,2]
[357172498,1743858648716,-172.708222,0.0002082,2]
[357172499,1743858648726,-171.185658,0.0002082,2]
[357172500,1743858648735,-171.185664,0.0002082,2]
[357172501,1743858648744,-321.68407,0.0002082,2]
[357172502,1743858648753,-193.632273,0.0002082,2]
[357172503,1743858648763,-321.684078,0.0002082,2]
[357172504,1743858648772,-193.632268,0.0002082,2]
[357172505,1743858648782,-500.0,0.00020821,2]
[357172506,1743858648791,-261.06,0.00020821,2]
[357172507,1743858648800,-500.0,0.00020821,2]
[357172508,1743858648809,-230.34595264,0.00020821,2]
[357172509,1743858648819,-520.44,0.00020821,2]
[357172510,1743858648828,-500.0,0.00020821,2]
[357172511,1743858648838,-500.0,0.00020821,2]
[357172512,1743858648847,-500.0,0.00020821,2]
[357172513,1743858648857,-500.0,0.00020821,2]
[357172514,1743858648938,-500.0,0.00020821,2]
[357172515,1743858648948,-500.0,0.00020821,2]
[357172516,1743858648957,-461.6,0.00020821,2]
[357172517,1743858648968,-500.0,0.00020821,2]
[357172518,1743858648978,-646.83,0.00020821,2]
[357172519,1743858648987,-500.0,0.00020821,2]
[357172520,1743858648997,-543.55819044,0.00020821,2]
[357172521,1743858649007,-500.0,0.00020821,2]
[357172522,1743858649016,-500.0,0.00020821,2]
[357172523,1743858649026,-494.95,0.00020821,2]
[357172524,1743858649035,-500.0,0.00020821,2]
[357172525,1743858649044,-500.0,0.00020821,2]
[357172526,1743858649054,-500.0,0.00020821,2]
[357172527,1743858649063,-500.0,0.00020821,2]
[357172528,1743858649072,-500.0,0.00020821,2]
[357172529,1743858649082,-500.0,0.00020821,2]
[357172530,1743858649092,-500.0,0.00020821,2]
[357172531,1743858649101,-500.0,0.00020821,2]
[357172532,1743858649111,-500.0,0.00020821,2]
[357172533,1743858649121,-500.0,0.00020821,2]
[357172534,1743858649133,-500.0,0.00020821,2]
[357172535,1743858649142,-500.0,0.00020821,2]
[357172536,1743858649152,-500.0,0.00020821,2]
[357172537,1743858649162,-500.0,0.00020821,2]
[357172538,1743858649172,-500.0,0.00020821,2]
[357172539,1743858649183,-1749.15,0.00020821,2]
[357172540,1743858649192,-500.0,0.00020821,2]
[357172541,1743858649203,-508.79,0.00020821,2]
[357172542,1743858649213,-500.0,0.00020821,2]
[357172543,1743858649223,-1750.68,0.00020821,2]
[357172544,1743858649233,-854.97,0.00020821,2]
[357172545,1743858649244,-3194.54,0.00020821,2]
[357172546,1743858649254,-500.0,0.00020821,2]
[357172547,1743858649263,-500.0,0.00020821,2]
[357172548,1743858649274,-500.0,0.00020821,2]
[357172549,1743858649284,-549.57,0.00020821,2]
[357172550,1743858649294,-1304.9,0.00020821,2]
[357172551,1743858649304,-500.0,0.00020821,2]
[357172552,1743858649315,-808.65,0.00020821,2]
[357172553,1743858649325,-500.0,0.00020821,2]
[357172554,1743858649335,-500.0,0.00020821,2]
[357172555,1743858649344,-500.0,0.00020821,2]
[357172556,1743858649354,-500.0,0.00020821,2]
[357172557,1743858649365,-500.0,0.00020821,2]
[357172558,1743858649375,-1716.09,0.00020821,2]
[357172559,1743858649385,-500.0,0.00020821,2]
[357172560,1743858649395,-2331.95,0.00020821,2]
[357172561,1743858649404,-500.0,0.00020821,2]
[357172562,1743858649414,-499.99999999,0.00020821,2]
[357172563,1743858649424,-500.0,0.00020821,2]
[357172564,1743858649433,-500.0,0.00020821,2]
[357172565,1743858649442,-516.53,0.00020821,2]
[357172566,1743858649452,-437.68,0.00020821,2]
[357172567,1743858649462,-500.0,0.00020821,2]
[357172568,1743858649472,-500.0,0.00020821,2]
[357172569,1743858649483,-776.09,0.00020821,2]
[357172570,1743858649493,-590.42,0.00020821,2]
[357172571,1743858649504,-624.89,0.00020821,2]
[357172572,1743858649514,-500.0,0.00020821,2]
[357172573,1743858649524,-500.0,0.00020821,2]
[357172574,1743858649534,-66310.53,0.00020821,2]
[357172575,1743858649544,-670.7,0.00020821,2]
[357172576,1743858649554,-500.0,0.00020821,2]
[357172577,1743858649564,-901.27,0.00020821,2]
[357172578,1743858649573,-639.71652006,0.00020821,2]
[357172579,1743858649583,-500.0,0.00020821,2]
[357172580,1743858649593,-500.0,0.00020821,2]
[357172581,1743858649603,-500.0,0.00020821,2]
[357172582,1743858649612,-500.0,0.00020821,2]
[357172583,1743858649622,-500.0,0.00020821,2]
[357172584,1743858649632,-500.0,0.00020821,2]
[357172585,1743858649641,-500.0,0.00020821,2]
[357172586,1743858649650,-631.0,0.00020821,2]
[357172587,1743858649660,-500.0,0.00020821,2]
[357172588,1743858649670,-500.0,0.00020821,2]
[357172589,1743858649680,-500.0,0.00020821,2]
[357172590,1743858649690,-500.0,0.00020821,2]
[357172591,1743858649699,-500.0,0.00020821,2]
[357172592,1743858649709,-500.0,0.00020821,2]
[357172593,1743858649720,-500.0,0.00020821,2]
[357172594,1743858649730,-500.0,0.00020821,2]
[357172595,1743858649740,-500.0,0.00020821,2]
[357172596,1743858649749,-500.0,0.00020821,2]
[357172597,1743858649759,-500.0,0.00020821,2]
[357172598,1743858649769,-500.0,0.00020821,2]
[357172599,1743858649779,-1988.45,0.00020821,2]
[357172600,1743858649789,-691.0,0.00020821,2]
[357172601,1743858649798,-500.0,0.00020821,2]
[357172602,1743858649807,-500.0,0.00020821,2]
[357172603,1743858649817,-500.0,0.00020821,2]
[357172604,1743858649827,-500.0,0.00020821,2]
[357172605,1743858649836,-3354.94,0.00020821,2]
[357172606,1743858649846,-500.0,0.00020821,2]
[357172607,1743858649856,-500.0,0.00020821,2]
[357172608,1743858649865,-518.82,0.00020821,2]
[357172609,1743858649875,-500.0,0.00020821,2]
[357172610,1743858649884,-547.56026486,0.00020821,2]
[357172611,1743858649894,-500.0,0.00020821,2]
[357172612,1743858649904,-500.0,0.00020821,2]
[357172613,1743858649913,-500.0,0.00020821,2]
[357172614,1743858649923,-500.0,0.00020821,2]
[357172615,1743858649932,-500.0,0.00020821,2]
[357172616,1743858649943,-722.15,0.00020821,2]
[357172617,1743858649954,-898.1,0.00020821,2]
[357172618,1743858649965,-500.0,0.00020821,2]
[357172619,1743858649974,-500.0,0.00020821,2]
[357172620,1743858649984,-420.0,0.00020866,2]
[357172621,1743858649993,-151.0,0.000209,3]
[357172622,1743858650003,-151.0,0.000209,3]
[357172623,1743858650012,-7789.61125727,0.000209,3]
[357172624,1743858650022,-4590.84,0.00020985,2]
[357172625,1743858650031,-1633.746554,0.00021,2]
[357172626,1743858650040,-151.0,0.00021,3]
[357172627,1743858650051,-324.71411844,0.00021,3]
[357172628,1743858650060,-2000.0,0.00021,4]
[357172629,1743858650070,-151.0,0.00021095,2]
[357172630,1743858650080,-151.0,0.00021095,2]
[357172631,1743858650089,-500.0,0.00021095,2]
[357172632,1743858650099,-500.0,0.00021095,2]
[357172633,1743858650108,-500.0,0.00021095,2]
[357172634,1743858650118,-500.0,0.00021095,2]
[357172635,1743858650132,-500.0,0.00021095,2]
[357172636,1743858650142,-646.83,0.00021095,2]
[357172637,1743858650151,-500.0,0.00021095,2]
[357172638,1743858650161,-320.95,0.00021095,2]
[357172639,1743858650171,-516.9,0.00021095,2]
[357172640,1743858650180,-500.0,0.00021095,2]
[357172641,1743858650190,-426.71,0.00021095,2]
[357172642,1743858650199,-196.75,0.00021095,2]
[357172643,1743858650211,-500.0,0.00021095,2]
[357172644,1743858650222,-167.34,0.00021095,2]
[357172645,1743858650232,-500.0,0.00021095,2]
[357172646,1743858650242,-604.27,0.00021095,2]
[357172647,1743858650251,-500.0,0.00021095,2]
[357172648,1743858650260,-500.0,0.00021095,2]
[357172649,1743858650270,-500.0,0.00021095,2]
[357172650,1743858650279,-500.0,0.00021095,2]
[357172651,1743858650289,-500.0,0.00021095,2]
[357172652,1743858650299,-1749.15,0.00021095,2]
[357172653,1743858650308,-500.0,0.00021095,2]
[357172654,1743858650318,-508.79,0.00021095,2]
[357172655,1743858650327,-500.0,0.00021095,2]
[357172656,1743858650402,-1750.68,0.00021095,2]
[357172657,1743858650413,-854.97,0.00021095,2]
[357172658,1743858650424,-3194.54,0.00021095,2]
[357172659,1743858650434,-500.0,0.00021095,2]
[357172660,1743858650444,-500.0,0.00021095,2]
[357172661,1743858650454,-500.0,0.00021095,2]
[357172662,1743858650464,-549.57,0.00021095,2]
[357172663,1743858650475,-1304.9,0.00021095,2]
[357172664,1743858650484,-500.0,0.00021095,2]
[357172665,1743858650495,-808.65,0.00021095,2]
[357172666,1743858650504,-500.0,0.00021095,2]
[357172667,1743858650515,-500.0,0.00021095,2]
[357172668,1743858650524,-500.0,0.00021095,2]
[357172669,1743858650533,-500.0,0.00021095,2]
[357172670,1743858650543,-500.0,0.00021095,2]
[357172671,1743858650553,-1716.09,0.00021095,2]
[357172672,1743858650562,-500.0,0.00021095,2]
[357172673,1743858650571,-2331.95,0.00021095,2]
[357172674,1743858650581,-500.0,0.00021095,2]
[357172675,1743858650590,-500.0,0.00021095,2]
[357172676,1743858650600,-403.07,0.00021095,2]
[357172677,1743858650609,-500.0,0.00021095,2]
[357172678,1743858650618,-500.0,0.00021095,2]
[357172679,1743858650628,-776.09,0.00021095,2]
[357172680,1743858650638,-590.42,0.00021095,2]
[357172681,1743858650648,-624.89,0.00021095,2]
[357172682,1743858650658,-500.0,0.00021095,2]
[357172683,1743858650668,-382.45,0.00021095,2]
[357172684,1743858650678,-66310.53,0.00021095,2]
[357172685,1743858650688,-670.7,0.00021095,2]
[357172686,1743858650698,-500.0,0.00021095,2]
[357172687,1743858650707,-901.27,0.00021095,2]
[357172688,1743858650718,-185.55,0.00021095,2]
[357172689,1743858650729,-500.0,0.00021095,2]
[357172690,1743858650739,-500.0,0.00021095,2]
[357172691,1743858650749,-500.0,0.00021095,2]
[357172692,1743858650759,-500.0,0.00021095,2]
[357172693,1743858650768,-500.0,0.00021095,2]
[357172694,1743858650778,-631.0,0.00021095,2]
[357172695,1743858650788,-500.0,0.00021095,2]
[357172696,1743858650798,-500.0,0.00021095,2]
[357172697,1743858650807,-500.0,0.00021095,2]
[357172698,1743858650816,-500.0,0.00021095,2]
[357172699,1743858650826,-500.0,0.00021095,2]
[357172700,1743858650836,-500.0,0.00021095,2]
[357172701,1743858650845,-500.0,0.00021095,2]
[357172702,1743858650855,-421.76,0.00021095,2]
[357172703,1743858650865,-500.0,0.00021095,2]
[357172704,1743858650875,-474.29470558,0.00021095,2]
[357172705,1743858650885,-500.0,0.00021095,2]
[357172706,1743858650895,-1988.45,0.00021095,2]
[357172707,1743858650905,-691.0,0.00021095,2]
[357172708,1743858650916,-500.0,0.00021095,2]
[357172709,1743858650926,-500.0,0.00021095,2]
[357172710,1743858650936,-500.0,0.00021095,2]
[357172711,1743858650946,-3354.94,0.00021095,2]
[357172712,1743858650956,-500.0,0.00021095,2]
[357172713,1743858650966,-500.0,0.00021095,2]
[357172714,1743858650976,-500.0,0.00021095,2]
[357172715,1743858650987,-500.0,0.00021095,2]
[357172716,1743858650998,-500.0,0.00021095,2]
[357172717,1743858651008,-500.0,0.00021095,2]
[357172718,1743858651018,-500.0,0.00021095,2]
[357172719,1743858651028,-722.15,0.00021095,2]
[357172720,1743858651038,-898.1,0.00021095,2]